bitfinex/quotes_BTCUSD_20251015
["timestamp","ask_amount","ask_price","bid_price","bid_amount"]
[1760554304800,0.00058542,111430.0,111420.0,0.2691911]
[1760554305010,0.00058542,111430.0,111420.0,0.3818711]
[1760554305365,0.00058542,111430.0,111420.0,0.2711911]
[1760554305798,0.00058542,111430.0,111420.0,0.3838711]
[1760554306146,0.00058542,111430.0,111420.0,0.79900712]
[1760554306348,0.00058542,111430.0,111420.0,1.59032542]
[1760554306578,0.00058542,111430.0,111420.0,1.47764542]
[1760554306782,0.00058542,111430.0,111420.0,1.59032542]
[1760554307185,0.00058542,111430.0,111420.0,1.58932542]
[1760554307386,0.00058542,111430.0,111420.0,1.1731894]
[1760554307611,0.00058542,111430.0,111420.0,1.1741894]
[1760554307811,0.00058542,111430.0,111420.0,1.1751894]
[1760554308471,0.00058542,111430.0,111420.0,1.59032542]
[1760554309141,0.00058542,111430.0,111420.0,1.47764542]
[1760554309358,0.00058542,111430.0,111420.0,0.64737338]
[1760554309556,0.00058542,111430.0,111420.0,1.1751894]
[1760554311055,0.00058542,111430.0,111420.0,1.0625094]
[1760554311336,0.00058542,111430.0,111420.0,1.1751894]
[1760554313247,0.00058542,111430.0,111420.0,1.0625094]
[1760554313465,0.00058542,111430.0,111420.0,1.1751494]
[1760554313663,0.00058542,111430.0,111420.0,0.6111911]
[1760554313863,0.00058542,111430.0,111420.0,0.7238311]
[1760554314068,0.00058542,111430.0,111420.0,0.6111911]
[1760554314269,0.00058542,111430.0,111420.0,0.7238311]
[1760554314897,0.00058542,111430.0,111420.0,0.6111911]
[1760554315121,0.00058542,111430.0,111420.0,0.2711911]
[1760554315330,0.41572144,111430.0,111420.0,0.2711911]
[1760554315558,0.59520631,111430.0,111420.0,0.2711911]
[1760554315769,0.59520631,111430.0,111420.0,0.002]
[1760554315770,0.62509353,111430.0,111420.0,0.002]
[1760554316382,0.62509353,111430.0,111420.0,0.001]
[1760554316734,0.17950098,111420.0,111410.0,0.1795098]
[1760554316937,0.17950098,111420.0,111410.0,0.26919992]
[1760554317348,0.594637,111420.0,111400.0,0.18849547]
[1760554317548,0.594637,111420.0,111400.0,0.27818559]
[1760554317890,0.594637,111420.0,111410.0,0.17951709]
[1760554318050,0.41513602,111420.0,111410.0,0.17951709]
[1760554318250,0.594637,111420.0,111410.0,0.17951709]
[1760554318813,0.41513602,111420.0,111410.0,0.17951709]
[1760554319009,0.594637,111420.0,111410.0,0.17951709]
[1760554319231,0.594637,111420.0,111410.0,0.18051709]
[1760554319831,0.66993381,111430.0,111420.0,0.17950098]
[1760554319969,0.64004659,111430.0,111420.0,0.17950098]
[1760554320174,0.63107235,111430.0,111420.0,0.17950098]
[1760554320571,0.18895211,111430.0,111420.0,0.17950098]
[1760554321220,0.60408813,111430.0,111420.0,0.17950098]
[1760554321770,0.42460326,111430.0,111420.0,0.17950098]
[1760554322786,0.00946724,111430.0,111420.0,0.17950098]
[1760554323612,0.42460326,111430.0,111420.0,0.17950098]
[1760554323821,0.60408813,111430.0,111420.0,0.17950098]
[1760554324169,0.42460326,111430.0,111420.0,0.17950098]
[1760554324366,0.00058542,111430.0,111420.0,0.17950098]
[1760554324577,0.00058542,111430.0,111420.0,0.2691911]
[1760554325567,0.59520631,111430.0,111420.0,0.2691911]
[1760554326031,0.00058542,111430.0,111420.0,0.2691911]
[1760554328222,0.00058542,111430.0,111420.0,0.68435073]
[1760554328473,0.00058542,111430.0,111420.0,1.55219036]
[1760554329159,0.00058542,111430.0,111420.0,0.7218711]
[1760554329651,0.00058542,111430.0,111420.0,1.55219036]
[1760554329859,0.00058542,111430.0,111420.0,1.55319036]
[1760554330052,0.00058542,111430.0,111420.0,1.55419036]
[1760554330466,0.00058542,111430.0,111420.0,1.44151036]
[1760554330691,0.00058542,111430.0,111420.0,1.55419036]
[1760554332812,0.00058542,111430.0,111420.0,1.59037264]
[1760554333227,0.00058542,111430.0,111420.0,1.47769264]
[1760554333450,0.00058542,111430.0,111420.0,1.59033264]
[1760554333644,0.00058542,111430.0,111420.0,2.00549227]
[1760554334074,0.00058542,111430.0,111420.0,1.59033264]
[1760554334295,0.00058542,111430.0,111420.0,1.47769264]
[1760554334507,0.00058542,111430.0,111420.0,1.58933264]
[1760554334895,0.00058542,111430.0,111420.0,1.47669264]
[1760554335401,9.002e-05,111450.0,111440.0,1.38597031]
[1760554335606,9.002e-05,111450.0,111440.0,1.58830043]
[1760554336026,0.00126058,111450.0,111440.0,1.58830043]
[1760554336199,0.00126058,111450.0,111440.0,1.61527102]
[1760554336408,0.00126058,111450.0,111440.0,1.50263102]
[1760554336609,0.00126058,111450.0,111440.0,2.03043065]
[1760554336811,0.00126058,111450.0,111440.0,1.50263102]
[1760554336990,0.00126058,111450.0,111440.0,1.61627102]
[1760554337559,0.00126058,111450.0,111440.0,1.91879065]
[1760554337918,0.00126058,111450.0,111440.0,2.03243065]
[1760554338099,0.00126058,111450.0,111440.0,2.04142662]
[1760554338305,0.00126058,111450.0,111440.0,1.92778662]
[1760554338504,0.00126058,111450.0,111440.0,2.04042662]
[1760554338706,0.00126058,111450.0,111440.0,2.04142662]
[1760554339100,0.00126058,111450.0,111440.0,2.04242662]
[1760554340203,0.00126058,111450.0,111440.0,0.79694773]
[1760554340409,0.00126058,111450.0,111440.0,1.62726699]
[1760554341396,0.00126058,111450.0,111440.0,2.04242662]
[1760554345993,0.00126058,111450.0,111440.0,1.92978662]
[1760554346197,0.00126058,111450.0,111440.0,2.04242662]
[1760554347971,0.00126058,111450.0,111440.0,1.92978662]
[1760554348271,0.00126058,111450.0,111440.0,2.04242662]
[1760554348695,0.00126058,111450.0,111440.0,1.92978662]
[1760554348919,0.00126058,111450.0,111440.0,1.62726699]
[1760554349253,0.00126058,111450.0,111440.0,0.79694773]
[1760554349449,0.00126058,111450.0,111440.0,1.62726699]
[1760554349668,0.00126058,111450.0,111440.0,1.51462699]
[1760554350030,0.00126058,111450.0,111440.0,1.21206736]
[1760554350235,0.00126058,111450.0,111440.0,1.51462699]
[1760554350445,0.00126058,111450.0,111440.0,1.62722699]
[1760554351064,0.00126058,111450.0,111440.0,1.51462699]
[1760554351601,0.00126058,111450.0,111440.0,1.62722699]
[1760554352170,0.00126058,111450.0,111440.0,1.51462699]
[1760554352973,0.00126058,111450.0,111440.0,1.62722699]
[1760554353570,0.00126058,111450.0,111440.0,1.51462699]
[1760554353981,0.00126058,111450.0,111440.0,1.62722699]
[1760554355398,0.00126058,111450.0,111440.0,1.51462699]
[1760554355566,0.00126058,111450.0,111440.0,1.62722699]
[1760554355764,0.00126058,111450.0,111440.0,1.51462699]
[1760554356170,0.00126058,111450.0,111440.0,1.62722699]
[1760554357857,0.00126058,111450.0,111440.0,1.51462699]
[1760554358346,0.00126058,111450.0,111440.0,1.62722699]
[1760554358592,0.00126058,111450.0,111440.0,1.51462699]
[1760554359250,0.00126058,111450.0,111440.0,1.09946736]
[1760554359856,0.00126058,111450.0,111440.0,1.21206736]
[1760554360011,0.00126058,111450.0,111440.0,1.09946736]
[1760554360420,0.00126058,111450.0,111440.0,1.21006736]
[1760554361254,0.00126058,111450.0,111440.0,1.20906736]
[1760554362085,0.00126058,111450.0,111440.0,1.09646736]
[1760554362287,0.00126058,111450.0,111440.0,1.20906736]
[1760554362492,0.00126058,111450.0,111440.0,1.09646736]
[1760554362683,0.00126058,111450.0,111440.0,1.20906736]
[1760554363094,0.00126058,111450.0,111440.0,1.09646736]
[1760554363538,0.00126058,111450.0,111440.0,1.20906736]
[1760554364613,0.00126058,111450.0,111440.0,1.09646736]
[1760554364814,0.00126058,111450.0,111440.0,0.86906736]
[1760554365248,0.00126058,111450.0,111440.0,0.40872948]
[1760554365460,0.00126058,111450.0,111440.0,0.26915889]
[1760554366296,0.00126058,111450.0,111440.0,0.68431852]
[1760554366859,0.00126058,111450.0,111440.0,0.79691852]
[1760554367281,0.00126058,111450.0,111440.0,0.68431852]
[1760554367508,0.00126058,111450.0,111440.0,0.79691852]
[1760554368145,0.00126058,111450.0,111440.0,0.68431852]
[1760554368307,0.00126058,111450.0,111440.0,0.79691852]
[1760554368920,0.00126058,111450.0,111440.0,0.68431852]
[1760554369362,0.00126058,111450.0,111440.0,0.38175889]
[1760554369676,0.00126058,111450.0,111440.0,0.68431852]
[1760554370324,0.00126058,111450.0,111440.0,0.79691852]
[1760554370524,0.00126058,111450.0,111440.0,0.68431852]
[1760554370726,0.00126058,111450.0,111440.0,0.79691852]
[1760554370953,0.00126058,111450.0,111440.0,0.26915889]
[1760554371159,0.00126058,111450.0,111440.0,0.68431852]
[1760554371564,0.00126058,111450.0,111440.0,0.79691852]
[1760554371701,0.00126058,111450.0,111440.0,0.68431852]
[1760554372109,0.00126058,111450.0,111440.0,0.79691852]
[1760554372338,0.00126058,111450.0,111440.0,0.68431852]
[1760554372943,0.00126058,111450.0,111440.0,0.79691852]
[1760554373618,0.00126058,111450.0,111440.0,0.68431852]
[1760554373865,0.00126058,111450.0,111440.0,0.79691852]
[1760554374570,0.00126058,111450.0,111440.0,1.43947815]
[1760554374770,0.00126058,111450.0,111440.0,1.55207815]
[1760554374982,0.00126058,111450.0,111440.0,1.43947815]
[1760554375182,0.00126058,111450.0,111440.0,1.57145073]
[1760554375870,0.00126058,111450.0,111440.0,1.57245073]
[1760554376099,0.00126058,111450.0,111440.0,1.60863301]
[1760554377453,0.00126058,111450.0,111440.0,1.47666043]
[1760554377678,0.00126058,111450.0,111440.0,1.58926043]
[1760554378870,0.00126058,111450.0,111440.0,0.64634117]
[1760554379048,0.00126058,111450.0,111440.0,1.47666043]
[1760554379253,0.00126058,111450.0,111440.0,1.58926043]
[1760554379840,0.00126058,111450.0,111440.0,0.75894117]
[1760554380035,0.00126058,111450.0,111440.0,1.47666043]
[1760554380279,0.00126058,111450.0,111440.0,1.58926043]
[1760554380926,0.0004,111460.0,111450.0,0.55563494]
[1760554381140,0.0004,111460.0,111450.0,1.58839453]
[1760554381796,0.00098517,111460.0,111450.0,1.58839453]
[1760554382004,0.00098517,111460.0,111450.0,1.47939021]
[1760554382206,0.00098517,111460.0,111450.0,1.59199021]
[1760554382427,1e-08,111460.0,111450.0,1.59299021]
[1760554382608,0.0004,111490.0,111480.0,0.55558665]
[1760554382894,0.0004,111490.0,111480.0,1.58819603]
[1760554383103,0.0004,111490.0,111480.0,1.13685412]
[1760554384158,0.0004,111490.0,111480.0,1.55201375]
[1760554384366,0.0004,111490.0,111480.0,1.44041375]
[1760554385212,0.0004,111490.0,111480.0,1.43941375]
[1760554385393,0.0004,111490.0,111480.0,1.02425412]
[1760554385568,0.0004,111490.0,111480.0,1.13885412]
[1760554386352,0.0004,111490.0,111480.0,1.55401375]
[1760554386552,0.0004,111490.0,111480.0,1.44141375]
[1760554386751,0.0004,111490.0,111480.0,1.56286265]
[1760554387254,0.0004,111490.0,111480.0,1.45026265]
[1760554387464,0.0004,111490.0,111480.0,1.14712706]
[1760554387692,0.0004,111490.0,111480.0,1.03452706]
[1760554388091,0.0004,111490.0,111480.0,1.14712706]
[1760554388321,0.00215497,111490.0,111480.0,1.14712706]
[1760554390116,0.00215497,111490.0,111480.0,1.03452706]
[1760554390330,0.00215497,111490.0,111480.0,1.14712706]
[1760554391275,0.00215497,111490.0,111480.0,1.48529301]
[1760554391476,0.00215497,111490.0,111480.0,1.59789301]
[1760554392122,0.00215497,111490.0,111480.0,1.59689301]
[1760554392451,0.00215497,111490.0,111480.0,1.48529301]
[1760554392861,0.00215497,111490.0,111480.0,1.59789301]
[1760554393062,0.00215497,111490.0,111480.0,1.59689301]
[1760554393268,0.00215497,111490.0,111480.0,1.18330934]
[1760554393913,0.00215497,111490.0,111480.0,1.07070934]
[1760554394148,0.00215497,111490.0,111480.0,1.18330934]
[1760554394590,0.00215497,111490.0,111480.0,1.07070934]
[1760554394801,0.00215497,111490.0,111480.0,1.18330934]
[1760554395456,0.00215497,111490.0,111480.0,1.07070934]
[1760554395824,0.00215497,111490.0,111480.0,1.18330934]
[1760554396365,0.00215497,111490.0,111480.0,1.07070934]
[1760554396590,0.00215497,111490.0,111480.0,1.18330934]
[1760554397604,0.00215497,111490.0,111480.0,1.07070934]
[1760554397804,0.00215497,111490.0,111480.0,1.18330934]
[1760554398211,0.00215497,111490.0,111480.0,1.07070934]
[1760554398698,0.00215497,111490.0,111480.0,1.48529301]
[1760554398899,0.00215497,111490.0,111480.0,1.18330934]
[1760554399265,0.00215497,111490.0,111480.0,1.48529301]
[1760554399584,0.00215497,111490.0,111480.0,1.59789301]
[1760554401386,0.0002,111500.0,111490.0,0.93397195]
[1760554401586,0.0002,111500.0,111490.0,1.55084574]
[1760554401785,0.0002,111500.0,111490.0,1.13626207]
[1760554402217,0.0002,111500.0,111490.0,1.16321868]
[1760554402640,1e-08,111520.0,111510.0,0.51935611]
[1760554402851,1e-08,111520.0,111510.0,1.47439585]
[1760554403060,1e-08,111520.0,111510.0,1.58707585]
[1760554403277,1e-08,111520.0,111510.0,1.47439585]
[1760554403493,0.07914615,111540.0,111530.0,0.93390761]
[1760554403706,0.07914615,111540.0,111530.0,1.13627773]
[1760554404318,0.07914615,111540.0,111530.0,1.20216395]
[1760554404732,0.07964764,111540.0,111530.0,1.20216395]
[1760554405127,0.07964764,111540.0,111530.0,1.20316395]
[1760554405506,0.07964764,111540.0,111530.0,1.09148395]
[1760554406051,0.07964764,111540.0,111530.0,1.20416395]
[1760554406879,0.07964764,111540.0,111530.0,1.09148395]
[1760554407082,0.07964764,111540.0,111530.0,1.20412395]
[1760554407486,0.07964764,111540.0,111530.0,1.09048395]
[1760554407701,0.07964764,111540.0,111530.0,1.02559773]
[1760554408106,0.07964764,111540.0,111530.0,1.17246001]
[1760554408642,0.07964764,111540.0,111530.0,0.61001406]
[1760554408795,0.08800562,111540.0,111530.0,0.38169406]
[1760554409201,0.08800562,111540.0,111530.0,0.26901406]
[1760554409404,0.08800562,111540.0,111530.0,0.38265406]
[1760554409980,0.08800562,111540.0,111530.0,0.26901406]
[1760554410369,0.08800562,111540.0,111530.0,0.27001406]
[1760554410580,0.08800562,111540.0,111530.0,0.79723773]
[1760554410753,0.08800562,111540.0,111530.0,0.27001406]
[1760554411455,0.08800562,111540.0,111530.0,0.38265406]
[1760554412311,0.08800562,111540.0,111530.0,0.27001406]
[1760554412478,0.09092887,111540.0,111530.0,0.38265406]
[1760554413868,0.09092887,111540.0,111530.0,0.27001406]
[1760554414114,0.09092887,111540.0,111530.0,0.38265406]
[1760554414325,0.09092887,111540.0,111530.0,0.27001406]
[1760554414532,0.09092887,111540.0,111530.0,0.38265406]
[1760554414711,0.09093288,111540.0,111530.0,0.38265406]
[1760554415477,0.09093288,111540.0,111530.0,0.79723773]
[1760554415909,0.09093288,111540.0,111530.0,0.38265406]
[1760554416124,0.09093288,111540.0,111530.0,0.79723773]
[1760554416561,0.09093288,111540.0,111530.0,0.68459773]
[1760554416778,0.09093288,111540.0,111530.0,0.79719773]
[1760554417353,0.09093288,111540.0,111530.0,0.68459773]
[1760554417543,0.09093288,111540.0,111530.0,0.79719773]
[1760554417741,0.09093288,111540.0,111530.0,0.68459773]
[1760554417965,0.09093288,111540.0,111530.0,0.79719773]
[1760554418373,0.09093473,111540.0,111530.0,0.79719773]
[1760554418579,0.09093473,111540.0,111530.0,0.38261406]
[1760554418782,0.09093473,111540.0,111530.0,0.79719773]
[1760554419441,0.10766587,111540.0,111530.0,0.68459773]
[1760554419643,0.10766587,111540.0,111530.0,0.79719773]
[1760554420263,0.12694246,111540.0,111530.0,0.68459773]
[1760554420476,0.10766587,111540.0,111530.0,0.79719773]
[1760554420692,0.10766587,111540.0,111530.0,0.68459773]
[1760554420905,0.10766587,111540.0,111530.0,0.79719773]
[1760554421353,0.12694652,111540.0,111530.0,0.38261406]
[1760554422885,0.12694652,111540.0,111530.0,1.06078001]
[1760554423100,0.09093588,111540.0,111530.0,1.06078001]
[1760554423505,0.08257089,111540.0,111530.0,1.17338001]
[1760554424595,0.08257089,111540.0,111530.0,1.17238001]
[1760554424805,0.08257089,111540.0,111530.0,1.17438001]
[1760554425009,0.08257089,111540.0,111530.0,1.06078001]
[1760554425248,0.08257089,111540.0,111530.0,1.17338001]
[1760554425479,0.08257089,111540.0,111530.0,1.06078001]
[1760554425662,0.08257089,111540.0,111530.0,1.17538001]
[1760554425868,0.08257089,111540.0,111530.0,1.06278001]
[1760554426098,0.08257089,111540.0,111530.0,1.17538001]
[1760554426301,0.08257089,111540.0,111530.0,0.76079634]
[1760554426530,0.08257089,111540.0,111530.0,1.06278001]
[1760554426797,0.08257089,111540.0,111530.0,1.17538001]
[1760554427843,0.08257089,111540.0,111530.0,1.06278001]
[1760554428468,0.08257089,111540.0,111530.0,1.17538001]
[1760554428883,0.12622884,111570.0,111550.0,0.37618228]
[1760554429042,0.09499413,111570.0,111560.0,0.85029936]
[1760554429236,0.09499413,111570.0,111560.0,1.17237179]
[1760554429446,0.08661398,111570.0,111560.0,1.17237179]
[1760554429863,0.06985368,111570.0,111560.0,1.17237179]
[1760554430408,0.06985368,111570.0,111560.0,1.05973179]
[1760554430649,0.06985368,111570.0,111560.0,1.17237179]
[1760554431059,0.06985368,111570.0,111560.0,1.05973179]
[1760554431263,0.06985368,111570.0,111560.0,1.17237179]
[1760554431474,0.06985368,111570.0,111560.0,1.17337179]
[1760554431906,0.06985368,111570.0,111560.0,0.60996584]
[1760554432103,0.27426204,111570.0,111560.0,0.27096584]
[1760554432312,0.29835778,111570.0,111560.0,0.27096584]
[1760554432523,0.11909813,111570.0,111560.0,0.27096584]
[1760554432733,0.11909813,111570.0,111560.0,0.26996584]
[1760554433623,0.11909813,111570.0,111560.0,0.26896584]
[1760554434669,0.12085122,111570.0,111560.0,0.26896584]
[1760554434925,0.09675548,111570.0,111560.0,0.68354951]
[1760554436045,0.09675548,111570.0,111560.0,0.26896584]
[1760554437169,0.07160677,111570.0,111560.0,0.26896584]
[1760554440989,0.09092116,111570.0,111560.0,0.26896584]
[1760554441414,0.07160677,111570.0,111560.0,0.26896584]
[1760554443616,0.07160677,111570.0,111560.0,0.68354951]
[1760554444436,0.07160677,111570.0,111560.0,0.26896584]
[1760554444852,0.07160677,111570.0,111560.0,0.79622951]
[1760554445061,0.07160677,111570.0,111560.0,0.68354951]
[1760554445221,0.07160677,111570.0,111560.0,0.38164584]
[1760554445831,0.25086642,111570.0,111550.0,0.519442]
[1760554446053,0.26842772,111570.0,111550.0,0.26913212]
[1760554446258,0.26842772,111570.0,111560.0,0.17927572]
[1760554447208,0.24911333,111570.0,111560.0,0.17927572]
[1760554447418,0.17927572,111560.0,111550.0,0.26913212]
[1760554448448,0.85276144,111570.0,111560.0,0.17927572]
[1760554448650,0.38312853,111570.0,111560.0,0.17927572]
[1760554448814,0.29359689,111570.0,111560.0,0.17927572]
[1760554449417,0.29359689,111570.0,111550.0,0.27013212]
[1760554449857,0.29359689,111570.0,111560.0,0.17927572]
[1760554451330,0.06985368,111570.0,111560.0,0.17927572]
[1760554451741,0.07160677,111570.0,111560.0,0.17927572]
[1760554452347,0.25086642,111570.0,111560.0,0.17927572]
[1760554453330,0.07160677,111570.0,111560.0,0.17927572]
[1760554453996,0.07160677,111570.0,111560.0,0.26896584]
[1760554455878,0.07160677,111570.0,111560.0,0.26996584]
[1760554461150,0.09669186,111570.0,111560.0,0.09069012]
[1760554461357,0.07160677,111570.0,111560.0,0.26996584]
[1760554471387,0.07160677,111570.0,111560.0,0.68406682]
[1760554475282,0.07160677,111570.0,111560.0,0.26996584]
[1760554475493,0.07160677,111570.0,111560.0,0.68406682]
[1760554478251,0.07160677,111570.0,111560.0,0.26996584]
[1760554480087,0.48570775,111570.0,111560.0,0.26996584]
[1760554480612,0.6649674,111570.0,111560.0,0.001]
[1760554480895,0.6649674,111570.0,111560.0,0.18027572]
[1760554481483,0.6649674,111570.0,111560.0,0.17927572]
[1760554481686,0.48570775,111570.0,111560.0,0.17927572]
[1760554481896,0.07160677,111570.0,111560.0,0.17927572]
[1760554482704,0.07160677,111570.0,111560.0,0.5933767]
[1760554483245,0.07160677,111570.0,111560.0,0.17927572]
[1760554483813,0.07160677,111570.0,111560.0,0.68306682]
[1760554484315,0.07160677,111570.0,111560.0,1.0971678]
[1760554484515,0.07160677,111570.0,111560.0,0.68306682]
[1760554485598,0.07160677,111570.0,111560.0,0.68406682]
[1760554486032,0.07160677,111570.0,111560.0,1.0981678]
[1760554486618,0.07160677,111570.0,111560.0,1.2107678]
[1760554486899,0.07160677,111570.0,111560.0,1.0981678]
[1760554487098,0.07160677,111570.0,111560.0,1.0971678]
[1760554487339,0.07160677,111570.0,111560.0,1.2097678]
[1760554487541,0.07160677,111570.0,111560.0,1.2117678]
[1760554487972,0.07160677,111570.0,111560.0,1.2117278]
[1760554488526,0.07160677,111570.0,111560.0,1.0991678]
[1760554488750,0.07160677,111570.0,111560.0,1.2117278]
[1760554490339,0.07160677,111570.0,111560.0,1.0991678]
[1760554490635,0.07160677,111570.0,111560.0,1.2117278]
[1760554493739,0.07160677,111570.0,111560.0,1.0991678]
[1760554493947,0.07160677,111570.0,111560.0,1.2117278]
[1760554494739,0.07160677,111570.0,111560.0,1.0991678]
[1760554494973,0.07160677,111570.0,111560.0,1.2117278]
[1760554496549,0.07160677,111570.0,111560.0,3.2117278]
[1760554498528,0.07160677,111570.0,111560.0,4.00201106]
[1760554498752,0.07160677,111570.0,111560.0,3.88945106]
[1760554498938,0.07160677,111570.0,111560.0,4.00201106]
[1760554500419,0.07160677,111570.0,111560.0,3.58787008]
[1760554500841,0.07160677,111570.0,111560.0,4.00197106]
[1760554501250,0.07160677,111570.0,111560.0,3.88945106]
[1760554501453,1e-08,111570.0,111560.0,4.00201106]
[1760554501861,1e-08,111570.0,111560.0,4.02895191]
[1760554502243,1e-08,111570.0,111560.0,4.02795191]
[1760554502454,1e-08,111570.0,111560.0,4.02895191]
[1760554502879,1e-08,111570.0,111560.0,4.02795191]
[1760554503378,1e-08,111590.0,111580.0,0.59334457]
[1760554503611,1e-08,111590.0,111580.0,1.51123665]
[1760554503829,1e-08,111590.0,111580.0,1.62383665]
[1760554504036,0.00116838,111590.0,111580.0,1.51123665]
[1760554504245,0.00116838,111590.0,111580.0,0.11662465]
[1760554504464,0.17925965,111570.0,111560.0,2.41710098]
[1760554504668,0.17925965,111570.0,111560.0,2.09169012]
[1760554504810,0.17925965,111570.0,111560.0,2.5037911]
[1760554505234,0.17925965,111570.0,111560.0,2.08969012]
[1760554505439,0.17925965,111570.0,111560.0,2.0]
[1760554506527,0.6706225,111570.0,111560.0,2.0]
[1760554506903,0.28251089,111570.0,111560.0,2.0]
[1760554507265,1.45071285,111570.0,111560.0,2.0]
[1760554507952,0.95935,111570.0,111560.0,2.0]
[1760554508178,0.34,111570.0,111560.0,2.17927572]
[1760554508412,0.93336063,111570.0,111560.0,2.0]
[1760554509075,0.96031024,111570.0,111560.0,2.0]
[1760554509291,0.54620926,111570.0,111560.0,2.0]
[1760554509503,0.9604266,111570.0,111560.0,2.17927572]
[1760554509707,0.9604266,111570.0,111560.0,2.0]
[1760554509919,1.03852542,111570.0,111560.0,2.0]
[1760554510429,1.46951276,111570.0,111560.0,2.0]
[1760554510695,1.47839812,111570.0,111560.0,2.0]
[1760554511263,1.48839812,111570.0,111560.0,2.0]
[1760554511468,1.48839812,111570.0,111560.0,4.0]
[1760554512289,1.47162812,111570.0,111560.0,4.0]
[1760554512725,1.48838957,111570.0,111560.0,4.0]
[1760554513416,1.59738893,111570.0,111560.0,4.0]
[1760554514094,0.76895425,111570.0,111560.0,4.0]
[1760554514298,0.69085543,111570.0,111560.0,4.0]
[1760554514741,1.51929011,111570.0,111560.0,4.0]
[1760554515391,1.49998087,111570.0,111560.0,4.0]
[1760554516468,1.51927219,111570.0,111560.0,4.0]
[1760554516688,1.49998087,111570.0,111560.0,4.0]
[1760554517319,1.58966295,111570.0,111560.0,4.0]
[1760554519285,1.58964228,111570.0,111560.0,4.0]
[1760554521693,1.60892273,111570.0,111560.0,4.0]
[1760554525628,1.63301847,111570.0,111560.0,4.0]
[1760554527435,1.64138667,111570.0,111560.0,4.0]
[1760554531232,1.67366609,111570.0,111560.0,4.0]
[1760554532328,1.67367226,111570.0,111560.0,4.0]
[1760554532463,1.64957652,111570.0,111560.0,4.0]
[1760554533486,1.69803126,111570.0,111560.0,4.0]
[1760554534609,1.66575184,111570.0,111560.0,4.0]
[1760554534824,0.74763508,111570.0,111560.0,4.0]
[1760554535036,1.57614451,111570.0,111560.0,4.0]
[1760554535477,1.52768977,111570.0,111560.0,4.0]
[1760554535665,1.57607165,111570.0,111560.0,4.0]
[1760554536388,1.52768977,111570.0,111560.0,4.0]
[1760554536997,1.61737185,111570.0,111560.0,4.0]
[1760554538492,1.68190162,111570.0,111560.0,4.0]
[1760554541208,1.61737185,111570.0,111560.0,3.95152268]
[1760554541420,1.7180839,111570.0,111560.0,3.95152268]
[1760554544407,2.11617618,111570.0,111560.0,3.51585184]
[1760554544628,1.70195884,111570.0,111560.0,3.51585184]
[1760554545262,1.70195613,111570.0,111560.0,3.51585184]
[1760554549206,1.66577385,111570.0,111560.0,3.51585184]
[1760554549987,1.66578045,111570.0,111560.0,3.51585184]
[1760554554308,1.61737845,111570.0,111560.0,3.44313322]
[1760554555355,1.66579927,111570.0,111560.0,3.44313322]
[1760554555770,1.32579927,111570.0,111560.0,3.44313322]
[1760554556603,1.38115312,111570.0,111560.0,3.44313322]
[1760554556806,1.41714284,111570.0,111560.0,3.44313322]
[1760554557911,1.75714284,111570.0,111560.0,3.44313322]
[1760554558125,1.7301864,111570.0,111560.0,3.44313322]
[1760554559917,1.7049899,111570.0,111560.0,3.44313322]
[1760554560127,1.71339751,111570.0,111560.0,3.44313322]
[1760554560502,1.72180549,111570.0,111560.0,3.44313322]
[1760554561173,1.7049899,111570.0,111560.0,3.44313322]
[1760554561602,1.73021366,111570.0,111560.0,3.44313322]
[1760554561757,1.72180574,111570.0,111560.0,3.44313322]
[1760554561965,1.7049899,111570.0,111560.0,3.44313322]
[1760554562541,0.78687314,111570.0,111560.0,3.44313322]
[1760554562755,1.03880862,111570.0,111560.0,3.44313322]
[1760554562968,1.06302421,111570.0,111560.0,3.44313322]
[1760554563173,1.03880862,111570.0,111560.0,3.44313322]
[1760554563415,0.69880862,111570.0,111560.0,3.44313322]
[1760554563828,0.72402971,111570.0,111560.0,3.44313322]
[1760554565089,0.76999974,111570.0,111560.0,3.44313322]
[1760554566639,0.76998771,111570.0,111560.0,3.44313322]
[1760554567404,0.72401768,111570.0,111560.0,3.44313322]
[1760554567597,1.06401768,111570.0,111560.0,3.44313322]
[1760554567996,0.98699978,111570.0,111560.0,3.44313322]
[1760554568188,0.63859275,111570.0,111560.0,3.44313322]
[1760554568391,0.22437541,111570.0,111560.0,3.62240894]
[1760554568599,0.24538216,111570.0,111560.0,3.62240894]
[1760554568868,0.2050063,111570.0,111560.0,3.62240894]
[1760554569004,0.17984235,111580.0,111560.0,3.62240894]
[1760554569216,0.17925965,111570.0,111560.0,3.62240894]
[1760554571607,0.5933803,111570.0,111560.0,3.62240894]
[1760554572226,0.17925965,111570.0,111560.0,3.62240894]
[1760554572480,0.60311634,111580.0,111560.0,3.62240894]
[1760554572630,0.64988932,111580.0,111560.0,3.62240894]
[1760554572827,0.17925965,111570.0,111560.0,3.62240894]
[1760554573051,0.60311634,111580.0,111570.0,0.17925965]
[1760554573287,0.26373376,111580.0,111560.0,3.62240894]
[1760554573578,0.18984235,111580.0,111560.0,4.03652959]
[1760554573854,0.00058424,111580.0,111570.0,0.17925965]
[1760554575612,0.17982783,111580.0,111570.0,0.17925965]
[1760554575829,0.18894844,111580.0,111570.0,0.17925965]
[1760554576301,0.00058424,111580.0,111570.0,0.17925965]
[1760554576522,0.17982783,111580.0,111570.0,0.17925965]
[1760554580861,0.00058424,111580.0,111570.0,0.17925965]
[1760554581309,0.00058424,111580.0,111570.0,0.5933803]
[1760554581539,0.00058424,111580.0,111570.0,0.26894977]
[1760554581754,0.71245993,111590.0,111580.0,0.17924359]
[1760554581977,0.59335261,111590.0,111580.0,0.17924359]
[1760554584253,0.61009981,111590.0,111580.0,0.17924359]
[1760554584959,0.67857227,111610.0,111590.0,0.51922752]
[1760554585205,0.17921146,111600.0,111590.0,0.17922752]
[1760554585446,0.61007826,111600.0,111590.0,0.17922752]
[1760554585677,0.61007789,111600.0,111580.0,0.17924359]
[1760554586257,0.61016777,111600.0,111590.0,0.17922752]
[1760554586703,0.61016777,111600.0,111580.0,0.17924359]
[1760554586946,0.61016777,111600.0,111590.0,0.17922752]
[1760554587173,0.19604712,111600.0,111580.0,0.17924359]
[1760554587387,0.61927301,111600.0,111590.0,0.17922752]
[1760554587849,0.6204412,111600.0,111590.0,0.17922752]
[1760554590240,0.62881956,111600.0,111590.0,0.17922752]
[1760554591755,0.64811562,111600.0,111590.0,0.17922752]
[1760554592120,0.01800385,111600.0,111590.0,0.59334817]
[1760554593075,0.19721531,111600.0,111590.0,0.59334817]
[1760554593478,0.01800385,111600.0,111590.0,0.59334817]
[1760554594357,0.01800385,111600.0,111590.0,0.59434817]
[1760554595068,0.01800385,111600.0,111590.0,0.68403829]
[1760554595616,0.01800385,111600.0,111590.0,0.68503829]
[1760554595819,0.06552136,111610.0,111590.0,0.68503829]
[1760554596046,0.09065432,111610.0,111600.0,0.01792114]
[1760554596218,0.09065432,111610.0,111600.0,0.1971326]
[1760554596586,0.07390011,111610.0,111600.0,0.17921146]
[1760554596790,0.08287463,111610.0,111590.0,0.6851885]